bitfinex/quotes_ETHUSD_20240922
["timestamp","ask_amount","ask_price","bid_price","bid_amount"]
[1727027420393,2.2507,2592.9,2592.4,3.8573]
[1727027420645,3.85721,2592.6,2592.1,3.8578]
[1727027420799,3.85721,2592.6,2591.9,6.20128]
[1727027420800,6.10805,2592.5,2591.9,6.20128]
[1727027421146,3.85743,2592.4,2591.9,6.20128]
[1727027421298,2.2507,2592.5,2592.1,3.85787]
[1727027421504,6.10778,2592.7,2592.2,3.85763]
[1727027422035,2.2507,2592.7,2592.3,3.85757]
[1727027422598,3.85721,2592.6,2592.1,3.85773]
[1727027423374,2.2507,2592.3,2591.8,3.8809694]
[1727027424414,6.1083,2592.3,2591.8,3.8809694]
[1727027424755,2.2507,2592.3,2591.8,3.8809694]
[1727027425718,2.2507,2592.3,2591.8,7.7391494]
[1727027425913,2.2507,2592.3,2591.9,3.85813]
[1727027426221,2.2507,2592.3,2592.0,3.85798]
[1727027426556,2.2507,2592.3,2592.0,3.85791]
[1727027428270,3.85723,2592.6,2592.1,3.85786]
[1727027428418,2.2507,2592.6,2592.0,3.85792]
[1727027428617,2.2507,2592.6,2592.2,3.85769]
[1727027429260,2.2507,2592.6,2592.3,3.85755]
[1727027429454,2.2507,2592.6,2592.2,3.85769]
[1727027429648,2.2507,2592.6,2592.2,7.7153]
[1727027431191,2.2507,2592.6,2592.3,3.85756]
[1727027431884,0.0809954,2592.5,2592.3,3.85756]
[1727027435645,0.0809954,2592.5,2592.2,3.85761]
[1727027436047,0.0809954,2592.5,2592.2,7.71524]
[1727027436586,0.0809954,2592.5,2592.2,3.85761]
[1727027436945,0.0809954,2592.5,2592.2,7.71526]
[1727027437890,0.0809954,2592.5,2592.2,3.85761]
[1727027438090,0.0809954,2592.5,2592.2,7.71526]
[1727027438995,0.0809954,2592.5,2592.2,7.71524]
[1727027439998,0.0809954,2592.5,2592.3,3.85757]
[1727027444667,0.0809954,2592.5,2592.3,7.71504]
[1727027444989,0.0809954,2592.5,2592.3,3.85747]
[1727027446616,0.0809954,2592.5,2592.3,7.71497]
[1727027446821,0.0809954,2592.5,2592.3,3.85747]
[1727027448221,0.0809954,2592.5,2592.1,3.85777]
[1727027448422,4.17151494,2592.5,2592.0,3.85801]
[1727027448579,4.17151494,2592.5,2592.1,3.85785]
[1727027449288,3.85744,2592.4,2591.9,3.85805]
[1727027449490,2.3416,2592.3,2591.9,7.71613]
[1727027449698,2.42118587,2592.3,2591.9,7.71613]
[1727027449893,2.42118587,2592.3,2592.0,3.85802]
[1727027450480,2.42118587,2592.3,2592.1,3.85786]
[1727027450718,0.07958587,2592.3,2592.1,3.85786]
[1727027451018,2.3416,2592.5,2592.1,3.85786]
[1727027451225,0.07952016,2592.2,2592.1,3.85786]
[1727027451405,6.19859,2592.7,2592.1,3.85786]
[1727027451579,2.3416,2592.7,2592.3,3.8575]
[1727027452283,7.45,2592.9,2592.5,3.85727]
[1727027452483,2.3416,2593.1,2592.8,3.8568]
[1727027452713,2.3416,2593.1,2592.6,3.85705]
[1727027452714,7.88388239,2593.1,2592.6,3.85705]
[1727027453030,4.02748239,2593.1,2592.7,3.85691]
[1727027453918,7.88389239,2593.1,2592.7,3.85691]
[1727027456192,7.88389239,2593.1,2592.6,3.85712]
[1727027456827,7.88389239,2593.1,2592.5,3.85718]
[1727027456990,6.19801,2593.1,2592.6,3.85712]
[1727027457391,6.19801,2593.1,2592.5,3.85718]
[1727027457605,6.19801,2593.1,2592.3,6.32927]
[1727027457606,2.3416,2592.8,2592.4,3.85738]
[1727027460146,2.3416,2592.8,2592.6,3.85703]
[1727027460314,2.3416,2592.8,2592.5,3.85727]
[1727027460641,2.3416,2592.8,2592.5,7.71447]
[1727027460949,2.3416,2592.8,2592.5,3.8572]
[1727027464096,2.3416,2592.8,2592.4,3.85735]
[1727027464340,0.07797914,2592.7,2592.4,3.85735]
[1727027464840,0.07797914,2592.6,2592.4,3.85735]
[1727027465232,2.3416,2592.8,2592.4,3.85735]
[1727027465447,0.0781023,2592.5,2592.4,3.85734]
[1727027465630,2.3416,2592.8,2592.4,3.85734]
[1727027465943,0.0781023,2592.7,2592.4,3.85734]
[1727027466239,2.3416,2592.8,2592.4,3.85734]
[1727027466440,0.0781023,2592.6,2592.5,3.85728]
[1727027466601,2.3416,2592.8,2592.5,3.85728]
[1727027466801,0.0781023,2592.6,2592.5,3.85728]
[1727027466997,2.3416,2592.8,2592.5,3.85728]
[1727027467210,0.0776023,2592.6,2592.5,3.85728]
[1727027467411,2.3416,2592.8,2592.5,3.85728]
[1727027468108,0.0776023,2592.7,2592.5,3.85728]
[1727027468336,2.3416,2592.8,2592.5,3.85728]
[1727027468549,0.0776023,2592.6,2592.5,3.85728]
[1727027468739,2.3416,2592.8,2592.5,3.85728]
[1727027469026,0.0776023,2592.7,2592.5,3.85728]
[1727027469226,2.3416,2592.8,2592.5,3.85728]
[1727027469427,0.0776023,2592.6,2592.5,3.85728]
[1727027469627,2.3416,2592.8,2592.5,3.85728]
[1727027470164,0.0776023,2592.7,2592.5,3.85728]
[1727027470353,2.3416,2592.8,2592.5,3.85728]
[1727027470558,0.0776023,2592.6,2592.5,3.85728]
[1727027470740,2.3416,2592.8,2592.5,3.85728]
[1727027471062,0.0776023,2592.6,2592.5,3.85728]
[1727027471267,2.3416,2592.8,2592.5,3.85728]
[1727027471861,0.0776023,2592.7,2592.5,3.85728]
[1727027472268,2.3416,2592.8,2592.5,3.85728]
[1727027472480,0.0776023,2592.6,2592.5,3.85728]
[1727027472772,3.402082,2592.8,2592.5,3.85728]
[1727027472938,0.0776023,2592.6,2592.5,3.85728]
[1727027473342,2.3416,2592.8,2592.5,3.85728]
[1727027473681,0.0776023,2592.6,2592.5,3.85717]
[1727027474005,6.25699,2593.1,2592.6,3.85708]
[1727027474136,1.011332,2593.0,2592.6,3.85708]
[1727027474331,4.867892,2593.0,2592.6,3.85708]
[1727027475273,1.011332,2593.0,2592.6,3.85706]
[1727027477080,1.011332,2593.0,2592.6,7.71412]
[1727027478074,1.011332,2593.0,2592.7,3.85696]
[1727027478257,6.257,2593.1,2592.7,3.85696]
[1727027478750,6.257,2593.1,2592.6,3.85706]
[1727027479176,0.07760643,2593.0,2592.6,7.71411]
[1727027479357,0.07760643,2593.0,2592.6,3.85704]
[1727027479992,0.07760643,2593.0,2592.6,7.7141]
[1727027480279,0.07760643,2593.0,2592.7,3.85697]
[1727027482190,0.71106707,2593.0,2592.7,3.85697]
[1727027483097,0.07760643,2593.0,2592.8,3.85683]
[1727027483304,0.07760643,2593.0,2592.9,6.14888]
[1727027483805,2.4062,2593.4,2593.1,3.85636]
[1727027484361,7.45,2593.5,2593.1,7.71267]
[1727027484569,6.85572,2593.6,2593.1,7.71267]
[1727027484570,6.22292,2593.6,2593.1,7.71267]
[1727027484773,6.9462228,2593.6,2593.1,7.71261]
[1727027484994,6.9462228,2593.6,2593.1,3.8563]
[1727027485405,6.9462228,2593.6,2593.1,7.71261]
[1727027485614,6.9462228,2593.6,2593.1,3.8563]
[1727027486303,6.9462228,2593.6,2593.1,7.71261]
[1727027486523,6.22256,2593.8,2592.9,2.2922]
[1727027486809,2.3672,2593.8,2593.4,7.7117]
[1727027487012,2.3672,2593.8,2593.4,7.71171]
[1727027487161,2.3672,2593.8,2593.4,7.7117]
[1727027487360,2.3672,2593.8,2593.4,3.85585]
[1727027487763,2.3672,2593.8,2593.4,7.71172]
[1727027488000,2.3672,2593.8,2593.4,3.85585]
[1727027488171,2.3672,2593.8,2593.4,7.71171]
[1727027488373,6.22212,2594.1,2593.5,6.24999]
[1727027488604,6.22212,2594.1,2593.5,6.24991]
[1727027488605,4.30926188,2594.0,2593.5,6.24991]
[1727027490104,4.30926188,2594.0,2593.5,10.10562]
[1727027490322,2.3672,2594.1,2593.8,3.85532]
[1727027490516,0.0156588,2594.2,2593.8,3.93237534]
[1727027490671,0.0156588,2594.2,2593.9,2.3942]
[1727027491280,3.85505,2594.0,2593.4,10.10589]
[1727027492025,3.85505,2594.0,2593.5,3.85574]
[1727027494180,0.07814413,2593.9,2593.5,3.85574]
[1727027494923,6.22277,2593.7,2593.2,6.25034]
[1727027495124,6.22277,2593.7,2593.2,3.85614]
[1727027495626,0.07816876,2593.6,2593.2,3.85614]
[1727027499991,0.07816876,2593.6,2592.8,2.4441]
[1727027499992,2.3806,2593.4,2592.8,2.4441]
[1727027500239,3.85632,2593.2,2592.8,2.4441]
[1727027500409,3.9342485,2593.3,2592.7,3.85694]
[1727027500595,3.85623,2593.2,2592.7,3.85694]
[1727027500793,3.9343085,2593.2,2592.7,3.85694]
[1727027500996,2.3806,2593.0,2592.6,2.4441]
[1727027501218,6.23716,2593.0,2592.6,2.4441]
[1727027501497,0.0780785,2592.9,2592.6,2.4441]
[1727027502197,0.0780785,2592.9,2592.5,3.85718]
[1727027502934,0.0780785,2592.9,2592.3,6.30156]
[1727027502935,7.7916385,2592.9,2592.4,3.85737]
[1727027503134,7.7916385,2592.9,2592.3,6.30156]
[1727027503135,4.95202235,2592.9,2592.3,10.15903]
[1727027503500,4.95202235,2592.9,2592.4,3.8574]
[1727027504237,3.85684,2592.8,2592.3,6.30156]
[1727027504543,0.077902,2592.7,2592.3,6.30156]
[1727027504837,3.85684,2592.8,2592.3,6.30156]
[1727027505144,3.85684,2592.8,2592.1,3.85778]
[1727027505145,3.8575,2592.4,2592.1,2.2987]
[1727027505306,2.2797,2592.6,2591.9,3.85813]
[1727027505307,0.55,2592.5,2591.9,6.15683]
[1727027505496,3.8576,2592.3,2591.8,3.8808794]
[1727027505717,2.2797,2592.2,2591.8,7.7391094]
[1727027506167,0.07770083,2592.1,2591.8,7.7391094]
[1727027506529,0.07770083,2592.1,2591.8,3.8808794]
[1727027506734,0.07770083,2592.1,2591.8,7.7391194]
[1727027507566,0.07770083,2592.1,2592.0,3.85802]
[1727027507879,2.2797,2592.5,2592.0,3.85802]
[1727027508030,0.07726558,2592.1,2592.0,3.85802]
[1727027508226,2.2797,2592.5,2592.0,3.85802]
[1727027508458,0.07726558,2592.4,2592.0,3.85802]
[1727027509060,0.07726558,2592.4,2592.3,6.15627]
[1727027509261,7.45,2592.7,2592.6,3.85713]
[1727027509461,0.07218052,2592.7,2592.6,3.85713]
[1727027510373,6.13617,2593.1,2592.6,3.85713]
[1727027510534,0.0707436,2592.7,2592.6,3.85713]
[1727027510733,6.13617,2593.1,2592.6,3.85713]
[1727027511051,9.9927,2593.1,2592.6,3.85713]
[1727027511260,3.9272936,2593.0,2592.4,7.71465]
[1727027511579,2.2797,2592.8,2592.4,3.85728]
[1727027511758,2.2797,2592.8,2592.5,3.85725]
[1727027512141,0.0707436,2592.7,2592.5,3.85725]
[1727027512525,2.2797,2592.8,2592.5,3.85725]
[1727027512728,0.0707436,2592.6,2592.5,3.85725]
[1727027512943,2.2797,2592.8,2592.5,3.85725]
[1727027513166,0.0707436,2592.6,2592.5,3.85725]
[1727027513327,2.2797,2592.8,2592.5,3.85725]
[1727027513845,0.0707436,2592.7,2592.5,3.85725]
[1727027514170,2.2797,2592.8,2592.5,3.85725]
[1727027514334,0.0707436,2592.6,2592.5,3.85725]
[1727027514534,2.2797,2592.8,2592.5,3.85725]
[1727027514764,0.0707436,2592.6,2592.5,3.85725]
[1727027514965,2.2797,2592.8,2592.5,3.85725]
[1727027515460,0.0707436,2592.7,2592.5,3.85725]
[1727027515672,2.2797,2592.8,2592.5,3.85725]
[1727027515835,0.0707436,2592.7,2592.5,3.85725]
[1727027516046,2.2797,2592.8,2592.5,3.85725]
[1727027516259,0.0707436,2592.7,2592.5,3.85725]
[1727027516459,2.2797,2592.8,2592.5,3.85725]
[1727027516661,0.0707436,2592.7,2592.5,3.85725]
[1727027516964,2.2797,2592.8,2592.5,3.85725]
[1727027517196,0.0707436,2592.6,2592.5,3.85725]
[1727027517673,2.2797,2592.8,2592.5,3.85725]
[1727027517875,0.0707436,2592.7,2592.5,3.85725]
[1727027518041,2.2797,2592.8,2592.5,3.85725]
[1727027518373,0.0707436,2592.7,2592.4,3.85728]
[1727027518576,0.0707436,2592.7,2592.4,7.71462]
[1727027518768,2.2797,2592.8,2592.4,7.71462]
[1727027518969,0.0707436,2592.6,2592.3,3.85756]
[1727027519273,0.0707436,2592.5,2592.3,3.85756]
[1727027519457,6.13658,2592.8,2592.3,3.85756]
[1727027519656,0.0707436,2592.7,2592.3,3.85756]
[1727027519881,7.135894,2592.8,2592.3,3.85756]
[1727027520088,0.0707436,2592.6,2592.3,3.85756]
[1727027520383,6.13658,2592.8,2592.3,3.85756]
[1727027520685,6.13658,2592.8,2592.4,3.85742]
[1727027520982,0.07084217,2592.7,2592.3,3.85757]
[1727027521184,0.07084217,2592.7,2592.4,3.85739]
[1727027521340,2.2797,2592.8,2592.4,3.85739]
[1727027521544,0.07084217,2592.6,2592.2,3.85762]
[1727027521781,3.85702,2592.7,2592.2,3.85762]
[1727027522285,3.92800217,2592.6,2592.0,3.85791]
[1727027522484,6.29795,2592.5,2592.0,3.85791]
[1727027522985,2.4406,2592.5,2592.0,3.85791]
[1727027523148,3.92834217,2592.4,2591.8,3.8808394]
[1727027523487,3.85758,2592.3,2591.8,3.8808394]
[1727027524148,3.92849253,2592.2,2591.8,0.0226494]
[1727027524352,2.3325,2592.1,2591.8,0.0226494]
[1727027524959,0.07070253,2592.0,2591.8,0.0226494]
[1727027525742,0.07070253,2592.0,2591.8,3.8809394]
[1727027526096,3.85731,2592.5,2591.8,0.0226494]
[1727027526379,0.07061217,2591.9,2591.8,3.8809694]
[1727027526692,0.07053823,2591.9,2591.8,3.8809694]
[1727027527143,4.40752,2592.4,2591.8,3.8809694]
[1727027527466,4.40752,2592.4,2591.9,7.71623]
[1727027527669,4.40751,2592.4,2591.8,0.0226494]
[1727027527889,3.85758,2592.3,2591.8,3.8808794]
[1727027528190,5.826511,2592.4,2591.8,0.0226494]
[1727027528191,2.3325,2592.2,2591.8,0.0226494]
[1727027528350,6.1903,2592.2,2591.8,0.0226494]
[1727027528861,5.826541,2592.4,2591.9,3.85817]
[1727027528862,8.302141,2592.4,2591.9,3.85817]
[1727027529055,0.55,2592.4,2592.0,3.8579]
[1727027529587,13.78282,2592.6,2592.1,3.85787]
[1727027529887,7.711102,2592.6,2592.1,3.85787]
[1727027530060,10.19008,2592.6,2592.1,3.85787]
[1727027530460,6.33281,2592.6,2592.1,3.85787]
[1727027531454,6.33281,2592.6,2592.1,3.85777]
[1727027531676,10.19005,2592.6,2592.1,3.85777]
[1727027531878,6.33281,2592.6,2592.1,3.85777]
[1727027532951,11.209055,2592.6,2592.1,3.85777]
[1727027533286,3.85749,2592.4,2591.9,3.85805]
[1727027533458,2.4756,2592.3,2591.9,7.71615]
[1727027533663,2.4756,2592.3,2591.9,3.85805]
[1727027534192,2.4756,2592.1,2591.8,0.0226494]
[1727027534485,6.88377,2591.9,2591.8,0.0226494]
[1727027535292,2.4756,2591.9,2591.8,0.0226494]
[1727027535494,3.85803,2592.0,2591.8,0.0226494]
[1727027535495,2.4756,2592.1,2591.8,0.0226494]
[1727027535651,3.43994739,2592.1,2591.8,0.0226494]
[1727027536405,3.85817,2591.9,2591.8,0.0226494]
[1727027537394,7.29792739,2592.1,2591.8,0.0226494]
[1727027538463,3.43994739,2592.1,2591.8,0.0226494]
[1727027539201,0.07037802,2592.0,2591.8,3.8809694]
[1727027539409,0.07037802,2592.0,2591.9,3.85817]
[1727027539738,6.29476,2592.4,2591.9,3.85817]
[1727027539907,0.07038212,2592.0,2591.9,3.85817]
[1727027540196,6.29476,2592.4,2591.9,3.85817]
[1727027540399,0.07038212,2592.0,2591.9,3.85817]
[1727027540699,0.07038212,2592.0,2591.8,3.8809694]
[1727027540887,3.85758,2592.3,2591.8,3.8809694]
[1727027541074,0.07038212,2591.9,2591.8,3.8809694]
[1727027541273,3.85758,2592.3,2591.8,3.8808894]
[1727027541487,0.07038212,2592.2,2591.8,3.8808894]
[1727027541786,4.872796,2592.3,2591.8,3.8808894]
[1727027541955,0.07038212,2592.1,2591.8,3.8808894]
[1727027542159,3.85758,2592.3,2591.8,3.8808894]
[1727027542356,0.07038212,2592.0,2591.8,3.8808894]
[1727027542568,3.85758,2592.3,2591.8,3.8808894]
[1727027542791,0.07038212,2591.9,2591.8,3.8808894]
[1727027542999,3.85758,2592.3,2591.8,7.7391194]
[1727027543170,0.07038212,2591.9,2591.8,3.8808794]
[1727027543529,0.07038212,2591.9,2591.8,6.2495694]
[1727027543825,9.8873,2592.6,2591.8,6.2495694]
[1727027543826,7.45,2592.6,2592.5,3.85728]
[1727027543986,6.30365,2593.0,2592.5,6.27638]
[1727027544180,8.172015,2593.0,2592.5,6.27638]
[1727027544808,3.85668,2592.9,2592.5,2.4191]
[1727027545384,3.85686,2592.8,2592.3,2.4191]
[1727027545629,3.8572,2592.6,2592.1,3.85783]
[1727027545784,3.8572,2592.6,2592.0,3.85791]
[1727027545785,0.63043,2592.5,2592.0,3.85791]
[1727027545989,6.30478,2592.3,2591.8,6.3000294]
[1727027546402,6.30478,2592.3,2591.8,10.1582594]
[1727027546609,2.4471,2592.3,2591.9,3.85816]
[1727027552393,2.3279,2592.5,2591.8,2.4417494]
[1727027552598,6.1852,2592.5,2592.0,3.85788]
[1727027552797,0.23279,2592.4,2592.0,3.85788]
[1727027554300,0.07050949,2592.3,2592.0,3.85788]
[1727027559437,0.07050949,2592.3,2591.9,3.85807]
[1727027560207,0.07050949,2592.3,2592.0,3.85788]
[1727027560763,0.07050949,2592.3,2591.9,3.85811]
[1727027565843,0.07050949,2592.3,2591.8,6.2999194]
[1727027565844,3.85782,2592.2,2591.8,2.4417494]
[1727027566019,3.85782,2592.2,2591.8,0.0226494]
[1727027566347,0.06903401,2592.1,2591.8,3.8809194]
[1727027566518,3.85776,2592.2,2591.8,0.0226494]
[1727027566906,0.06903401,2592.1,2591.8,0.0226494]
[1727027567550,2.3427,2592.0,2591.8,0.0226494]
[1727027568257,0.06903401,2591.9,2591.8,0.0226494]
[1727027569410,0.06903401,2591.9,2591.8,3.8809694]
[1727027569717,0.06903401,2591.9,2591.8,0.0226494]
[1727027571160,0.06903401,2591.9,2591.8,3.8809694]
[1727027571511,2.3427,2592.2,2591.8,3.8809694]
[1727027571711,0.06903401,2592.1,2591.8,3.8809694]
[1727027574459,0.06903401,2592.1,2591.8,0.0226494]
[1727027574814,0.06903401,2592.1,2591.8,3.8808794]
[1727027575247,0.06903401,2592.1,2591.9,3.85815]
[1727027575549,4.86891595,2592.3,2591.9,3.85815]
[1727027575851,0.06900118,2592.0,2591.9,3.85815]
[1727027576049,4.86891595,2592.3,2591.8,3.8809594]
[1727027576253,0.06900118,2592.0,2591.8,0.0226494]
[1727027576467,3.85788,2592.1,2591.8,0.0226494]
[1727027576629,0.06900118,2591.9,2591.8,0.0226494]
[1727027576841,3.85788,2592.1,2591.8,0.0226494]
[1727027577169,2.3427,2592.0,2591.8,0.0226494]
[1727027577453,2.41170118,2592.0,2591.8,0.0226494]
[1727027578017,6.58308746,2592.0,2591.8,0.0226494]
[1727027578213,10.44119746,2592.0,2591.8,0.0226494]
[1727027578559,6.58308746,2592.0,2591.8,0.0226494]
[1727027578917,3.85817,2591.9,2591.8,0.0226494]
[1727027579253,3.92716295,2591.9,2591.8,0.0226494]
[1727027579465,4.97128787,2591.9,2591.8,0.0226494]
[1727027580325,1.11311787,2591.9,2591.8,0.0226494]
[1727027580518,0.06899295,2591.9,2591.8,0.0226494]
[1727027580723,2.2799,2592.2,2591.8,6.2590694]
[1727027580946,0.06877935,2592.1,2591.8,6.2590694]
[1727027582697,0.06877935,2592.1,2591.8,3.8809694]
[1727027583204,2.2799,2591.9,2591.8,0.0226494]
[1727027583363,6.68807,2591.9,2591.8,0.0226494]
[1727027583565,6.7568781,2591.9,2591.8,0.0226494]
[1727027583974,2.3487081,2591.9,2591.8,0.0226494]
[1727027584178,0.0688081,2591.9,2591.8,0.0226494]
[1727027585201,7.06291594,2592.1,2591.8,0.0226494]
[1727027585499,1.09207359,2592.0,2591.8,0.0226494]
[1727027585904,0.06833236,2591.9,2591.8,0.0226494]
[1727027587312,3.92650236,2591.9,2591.8,0.0226494]
[1727027587497,0.06833236,2591.9,2591.8,0.0226494]
[1727027588199,6.21090236,2591.9,2591.8,0.0226494]
[1727027588365,8.22308397,2591.9,2591.8,0.0226494]
[1727027589373,10.76325814,2591.9,2591.8,0.0226494]
[1727027589892,8.22308397,2591.9,2591.8,0.0226494]
[1727027592077,10.76325814,2591.9,2591.8,0.0226494]
[1727027592977,13.76325814,2591.9,2591.8,0.0226494]
[1727027600831,16.08025814,2591.9,2591.8,0.0226494]
[1727027600991,13.76325814,2591.9,2591.8,0.0226494]
[1727027607533,13.76325814,2591.9,2591.1,0.0383082]
[1727027607534,3.85921,2591.2,2591.1,0.0383082]
[1727027607850,12.50592608,2591.2,2591.1,0.0383082]
[1727027608404,11.13939526,2591.2,2591.1,0.0383082]
[1727027610442,12.50831258,2591.2,2591.1,0.0383082]
[1727027619076,11.95831258,2591.2,2591.1,0.0383082]
[1727027619236,13.54005184,2591.2,2591.1,0.0383082]
[1727027620142,14.09005184,2591.2,2591.1,0.0383082]
[1727027621761,11.53350993,2591.2,2591.1,0.0383082]
[1727027622068,11.59990599,2591.2,2591.1,0.0383082]
[1727027625753,14.05620599,2591.2,2591.1,0.0383082]
[1727027627856,16.37320599,2591.2,2591.1,0.0383082]
[1727027628060,14.05620599,2591.2,2591.1,0.0383082]
[1727027629305,11.51364532,2591.2,2591.1,0.0383082]
[1727027629467,7.47560606,2591.2,2591.1,0.0383082]
[1727027629679,3.06639606,2591.2,2591.1,2.3045082]
[1727027629871,6.92560606,2591.2,2591.1,2.3045082]
[1727027631100,3.06639606,2591.2,2591.1,2.3045082]
[1727027631306,0.06639606,2591.2,2591.1,2.3045082]
[1727027631510,0.06639606,2591.2,2591.1,6.1638682]
[1727027631665,3.85888,2591.5,2591.2,2.2662]
[1727027632206,3.85896,2591.4,2591.2,2.2662]
[1727027632883,0.55,2591.4,2591.2,2.2662]
[1727027633892,3.85888,2591.5,2591.2,2.2662]
[1727027634092,3.55,2591.6,2591.2,2.2662]
[1727027634386,7.40863,2591.6,2591.2,2.2662]
[1727027639179,3.85877,2591.5,2591.2,2.2662]
[1727027639724,3.55,2591.6,2591.2,2.2662]
[1727027639906,3.0,2591.6,2591.3,2.4658]
[1727027640890,6.85862,2591.6,2591.3,2.4658]
[1727027641076,3.0,2591.6,2591.3,2.4658]
[1727027641277,0.55,2591.8,2591.5,2.4658]
[1727027641594,11.30797,2592.1,2591.5,2.4658]
[1727027641595,3.85813,2592.0,2591.5,2.4658]
[1727027642482,3.85795,2592.1,2591.6,3.8586]
[1727027642695,3.0,2592.0,2591.7,2.4658]
[1727027642898,3.85795,2592.1,2591.7,2.4658]
[1727027642899,3.0,2592.1,2591.7,2.4658]
[1727027643101,3.0,2592.1,2591.7,6.32426]
[1727027643307,6.85773,2592.2,2591.9,2.4658]
[1727027643707,3.8579,2592.1,2591.9,2.4658]
[1727027644328,0.06728832,2592.0,2591.9,2.4658]
[1727027645230,6.85774,2592.2,2591.9,2.4658]
[1727027645436,3.92530832,2592.0,2591.9,2.4658]
[1727027645578,3.85802,2592.0,2591.9,2.4658]
[1727027645786,3.92530832,2592.0,2591.9,2.4658]
[1727027646186,4.47530832,2592.0,2591.9,2.4658]
[1727027652887,0.06728832,2592.0,2591.9,2.4658]
[1727027653194,3.85773,2592.2,2591.9,2.4658]
[1727027653378,3.92535692,2592.1,2591.9,2.4658]
[1727027654588,3.85802,2592.0,2591.9,2.4658]
[1727027654982,3.92540692,2592.0,2591.9,2.4658]
[1727027655806,0.06738692,2592.0,2591.9,2.4658]
[1727027656501,0.55,2592.1,2591.9,2.4658]
[1727027656703,0.06738692,2592.0,2591.9,2.4658]
[1727027657261,0.06738692,2592.0,2591.9,6.32397]
[1727027657602,3.85775,2592.2,2591.9,2.4658]
[1727027657805,0.06738692,2592.1,2591.9,2.4658]
[1727027657992,3.0,2592.4,2592.1,2.3524]
[1727027658194,0.06745265,2592.3,2592.1,2.3524]
[1727027659204,0.06745265,2592.3,2592.1,6.21019]
[1727027659362,3.0,2592.5,2592.1,6.21019]
[1727027659564,0.0678225,2592.4,2592.1,6.21019]
[1727027660009,0.0678225,2592.4,2592.3,6.10787]
[1727027660242,7.45,2592.9,2592.4,6.10766]
[1727027660442,1.130663,2592.8,2592.4,6.10766]
[1727027661514,7.987573,2592.8,2592.4,2.2503]
[1727027661902,7.45,2592.9,2592.5,6.10748]
[1727027662103,7.45,2592.9,2592.6,2.2503]
[1727027662674,7.45,2592.9,2592.6,6.10739]
[1727027662856,2.4196,2593.4,2592.9,3.85657]
[1727027662857,7.45,2593.4,2592.9,3.85657]
[1727027663035,3.85588,2593.5,2593.0,2.2503]
[1727027663201,3.85573,2593.6,2593.1,2.2503]
[1727027663979,7.71145,2593.6,2593.1,2.2503]
[1727027664259,3.85572,2593.6,2593.1,6.10667]
[1727027664553,7.71149,2593.6,2593.1,6.10667]
[1727027664704,3.85572,2593.6,2593.1,6.10667]
[1727027664905,3.85581,2593.5,2593.1,2.2503]
[1727027665136,3.85572,2593.6,2593.1,2.2503]
[1727027665451,3.85572,2593.6,2592.9,3.85656]
[1727027665452,7.45,2594.0,2593.7,3.85549]
[1727027665659,0.0383082,2594.2,2593.9,3.85519]
[1727027665952,0.0383082,2594.2,2593.9,2.3575]
[1727027667701,0.0383082,2594.2,2594.0,3.85503]
[1727027667933,0.0383082,2594.2,2594.1,2.3575]
[1727027668133,0.0383082,2594.2,2594.1,6.28948744]
[1727027669448,0.0383082,2594.2,2594.1,2.3575]
[1727027671753,0.0383082,2594.2,2593.4,3.0]
[1727027671754,3.85499,2594.1,2593.7,2.3575]
[1727027671956,3.85523,2593.9,2593.7,2.3575]
[1727027672159,7.71054,2593.9,2593.7,2.3575]
[1727027672365,3.85523,2593.9,2593.1,2.3575]
[1727027672668,3.85523,2593.9,2593.3,6.21349]
[1727027672829,3.85536,2593.8,2593.3,6.21349]
[1727027673030,3.85523,2593.9,2593.3,6.21349]
[1727027673412,3.85523,2593.9,2593.4,0.07711023]
[1727027673617,7.71057,2593.9,2593.3,6.21349]
[1727027674313,0.0642688,2593.8,2593.4,0.07711023]
[1727027674518,0.0642688,2593.8,2593.4,3.93303023]
[1727027675627,0.0642688,2593.8,2593.4,3.85592]
[1727027675826,0.0642688,2593.8,2593.3,6.21349]
[1727027676030,0.0642688,2593.8,2593.3,10.0695]
[1727027676231,0.0642688,2593.8,2593.5,3.85571]
[1727027676529,11.3431582,2594.2,2593.7,3.85549]
[1727027676838,1.51978982,2594.1,2593.6,2.3575]
[1727027677039,3.8931582,2594.2,2593.6,6.21311]
[1727027677364,3.85496,2594.1,2593.6,2.3575]
[1727027677535,0.0383082,2594.2,2593.7,3.85536]
[1727027677737,0.0383082,2594.2,2593.9,2.3575]
[1727027679274,3.8549,2594.1,2593.9,2.3575]
[1727027680865,4.62968982,2594.1,2593.6,2.4038]
[1727027681051,3.85522,2593.9,2593.6,2.4038]
[1727027681376,2.4625082,2594.2,2593.1,3.85631]
[1727027681377,6.3172982,2594.2,2593.2,2.4038]
[1727027681689,3.85542,2593.8,2593.2,6.25994]
[1727027681825,3.85542,2593.8,2593.2,2.4038]
[1727027682031,3.85542,2593.8,2593.3,3.85608]
[1727027682681,7.71089,2593.8,2593.2,6.25999]
[1727027683337,3.85542,2593.8,2593.2,6.25999]
[1727027684276,3.85565,2593.6,2593.2,2.4038]
[1727027684477,3.85597,2593.4,2593.2,2.4038]
[1727027685381,7.71202,2593.4,2593.2,2.4038]
[1727027685579,7.71202,2593.4,2592.3,3.85754]
[1727027685580,3.8564,2593.1,2592.5,7.71439]
[1727027685751,3.8564,2593.1,2592.6,2.2831]
[1727027687479,3.85684,2592.8,2592.3,2.2831]
[1727027687681,7.71381,2592.8,2592.3,2.2831]
[1727027687885,3.85684,2592.8,2592.3,2.2831]
[1727027688065,3.85684,2592.8,2592.3,6.14063]
[1727027688652,6.12356,2593.2,2592.6,3.85705]
[1727027688879,3.85639,2593.1,2592.6,3.85705]
[1727027689188,3.85639,2593.1,2592.5,3.85714]
[1727027689189,3.85626,2593.2,2592.8,2.2831]
[1727027689335,0.06428132,2593.0,2592.8,2.2831]
[1727027689540,3.85626,2593.2,2592.8,2.2831]
[1727027689786,0.06428132,2592.9,2592.8,2.2831]
[1727027689989,4.40609,2593.3,2592.8,2.2831]